fUSD/lending_fUSD_20260515
["ID","MTS","AMOUNT","RATE_DAILY","PERIOD"]
[422289989,1778794263000,-200.0,0.00040999,30]
[422290001,1778794263000,-666.72878,0.00040999,30]
[422290007,1778794263000,-500.0,0.00040999,30]
[422290025,1778794263000,-500.0,0.00040999,30]
[422290013,1778794263000,-200.0,0.00040999,30]
[422290008,1778794263000,-745.65223616,0.00040999,30]
[422289999,1778794263000,-719.04747942,0.00040999,30]
[422290010,1778794263000,-691.39774486,0.00040999,30]
[422290009,1778794263000,-151.0,0.00040999,30]
[422290005,1778794263000,-200.0,0.00040999,30]
[422290004,1778794263000,-775.47832561,0.00040999,30]
[422290011,1778794263000,-151.0,0.00040999,30]
[422290000,1778794263000,-151.0,0.00040999,30]
[422290006,1778794263000,-500.0,0.00040999,30]
[422290003,1778794263000,-151.0,0.00040999,30]
[422290083,1778794264000,-1031.08454906,0.00040999,30]
[422290088,1778794264000,-160.0,0.00040999,30]
[422290098,1778794264000,-1149.82182577,0.00040999,30]
[422290087,1778794264000,-151.0,0.00040999,30]
[422290082,1778794264000,-151.0,0.00040999,30]
[422290077,1778794264000,-500.0,0.00040999,30]
[422290079,1778794264000,-151.0,0.00040999,30]
[422290078,1778794264000,-200.0,0.00040999,30]
[422290081,1778794264000,-500.0,0.00040999,30]
[422290084,1778794264000,-500.0,0.00040999,30]
[422290074,1778794264000,-200.0,0.00040999,30]
[422290080,1778794264000,-994.29561144,0.00040999,30]
[422290089,1778794264000,-500.0,0.00040999,30]
[422290103,1778794264000,-899.98323214,0.00040999,30]
[422290086,1778794264000,-1069.23467738,0.00040999,30]
[422290090,1778794264000,-314.77912416,0.00040999,30]
[422290092,1778794264000,-620.96653947,0.00040999,30]
[422290093,1778794264000,-1108.79636044,0.00040999,30]
[422290094,1778794264000,-156.587,0.00040999,30]
[422290096,1778794264000,-500.0,0.00040999,30]
[422290095,1778794264000,-160.0,0.00040999,30]
[422290091,1778794264000,-151.0,0.00040999,30]
[422290100,1778794264000,-160.0,0.00040999,30]
[422290102,1778794264000,-151.0,0.00040999,30]
[422290101,1778794264000,-500.0,0.00040999,30]
[422290099,1778794264000,-162.380719,0.00040999,30]
[422290076,1778794264000,-958.81929743,0.00040999,30]
[422290097,1778794264000,-151.0,0.00040999,30]
[422290085,1778794264000,-151.0,0.00040999,30]
[422290059,1778794264000,-500.0,0.00040999,30]
[422290063,1778794264000,-151.0,0.00040999,30]
[422290049,1778794264000,-151.0,0.00040999,30]
[422290046,1778794264000,-151.0,0.00040999,30]
[422290048,1778794264000,-200.0,0.00040999,30]
[422290047,1778794264000,-829.12830338,0.00040999,30]
[422290051,1778794264000,-500.0,0.00040999,30]
[422290050,1778794264000,-964.36669259,0.00040999,30]
[422290061,1778794264000,-151.0,0.00040999,30]
[422290052,1778794264000,-220.0,0.00040999,30]
[422290053,1778794264000,-500.0,0.00040999,30]
[422290055,1778794264000,-859.80605061,0.00040999,30]
[422290058,1778794264000,-1000.04826021,0.00040999,30]
[422290057,1778794264000,-151.0,0.00040999,30]
[422290054,1778794264000,-151.0,0.00040999,30]
[422290060,1778794264000,-500.0,0.00040999,30]
[422290056,1778794264000,-200.0,0.00040999,30]
[422290062,1778794264000,-891.61887448,0.00040999,30]
[422290064,1778794264000,-1037.05004584,0.00040999,30]
[422290065,1778794264000,-500.0,0.00040999,30]
[422290066,1778794264000,-220.0,0.00040999,30]
[422290072,1778794264000,-354.3846811,0.00040999,30]
[422290068,1778794264000,-200.0,0.00040999,30]
[422290073,1778794264000,-500.0,0.00040999,30]
[422290069,1778794264000,-151.0,0.00040999,30]
[422290067,1778794264000,-500.0,0.00040999,30]
[422290071,1778794264000,-578.65158662,0.00040999,30]
[422290105,1778794264000,-166.01432141,0.00040999,30]
[422290070,1778794264000,-924.60877284,0.00040999,30]
[422290075,1778794264000,-151.0,0.00040999,30]
[422290104,1778794264000,-168.3888056,0.00040999,30]
[422290138,1778794264000,-168.3888056,0.00040999,30]
[422290106,1778794264000,-500.0,0.00040999,30]
[422290136,1778794264000,-1000.0,0.00040999,30]
[422290144,1778794264000,-152.0,0.00040999,30]
[422290140,1778794264000,-156.587,0.00040999,30]
[422290141,1778794264000,-1000.0,0.00040999,30]
[422290139,1778794264000,-152.0,0.00040999,30]
[422290142,1778794264000,-233.51889341,0.00040999,30]
[422290148,1778794264000,-1613.0535,0.00040999,30]
[422290151,1778794264000,-1000.0,0.00040999,30]
[422290152,1778794264000,-187.78006525,0.00040999,30]
[422290150,1778794264000,-500.0,0.00040999,30]
[422290155,1778794264000,-518.5,0.00040999,30]
[422290154,1778794264000,-251.11897888,0.00040999,30]
[422290153,1778794264000,-162.380719,0.00040999,30]
[422290157,1778794264000,-194.72792766,0.00040999,30]
[422290161,1778794264000,-1000.0,0.00040999,30]
[422290149,1778794264000,-242.15909246,0.00040999,30]
[422290156,1778794264000,-1000.0,0.00040999,30]
[422290159,1778794264000,-260.4103811,0.00040999,30]
[422290160,1778794264000,-537.6845,0.00040999,30]
[422290158,1778794264000,-168.3888056,0.00040999,30]
[422290163,1778794264000,-174.61919141,0.00040999,30]
[422290162,1778794264000,-201.93286099,0.00040999,30]
[422290165,1778794264000,-557.5788265,0.00040999,30]
[422290166,1778794264000,-1000.0,0.00040999,30]
[422290164,1778794264000,-270.0455652,0.00040999,30]
[422290167,1778794264000,-181.08010149,0.00040999,30]
[422290107,1778794264000,-151.0,0.00040999,30]
[422290145,1778794264000,-1000.0,0.00040999,30]
[422290146,1778794264000,-181.08010149,0.00040999,30]
[422290143,1778794264000,-174.61919141,0.00040999,30]
[422290134,1778794264000,-152.0,0.00040999,30]
[422290108,1778794264000,-174.61919141,0.00040999,30]
[422290109,1778794264000,-152.0,0.00040999,30]
[422290111,1778794264000,-151.0,0.00040999,30]
[422290118,1778794264000,-152.0,0.00040999,30]
[422290114,1778794264000,-152.0,0.00040999,30]
[422290115,1778794264000,-303.51625113,0.00040999,30]
[422290113,1778794264000,-515.40689403,0.00040999,30]
[422290120,1778794264000,-194.72792766,0.00040999,30]
[422290112,1778794264000,-181.08010149,0.00040999,30]
[422290116,1778794264000,-500.0,0.00040999,30]
[422290117,1778794264000,-187.78006525,0.00040999,30]
[422290119,1778794264000,-471.19114523,0.00040999,30]
[422290121,1778794264000,-152.0,0.00040999,30]
[422290130,1778794264000,-1000.0,0.00040999,30]
[422290110,1778794264000,-500.0,0.00040999,30]
[422290131,1778794264000,-217.15233878,0.00040999,30]
[422290122,1778794264000,-1000.0,0.00040999,30]
[422290147,1778794264000,-156.02794494,0.00040999,30]
[422290135,1778794264000,-151.0,0.00040999,30]
[422290124,1778794264000,-152.0,0.00040999,30]
[422290128,1778794264000,-156.587,0.00040999,30]
[422290126,1778794264000,-1000.0,0.00040999,30]
[422290137,1778794264000,-225.18697532,0.00040999,30]
[422290123,1778794264000,-201.93286099,0.00040999,30]
[422290127,1778794264000,-209.40437684,0.00040999,30]
[422290125,1778794264000,-151.0,0.00040999,30]
[422290132,1778794264000,-162.380719,0.00040999,30]
[422290133,1778794264000,-247.65963397,0.00040999,30]
[422290129,1778794264000,-152.0,0.00040999,30]
[422290185,1778794265000,-242.15909246,0.00040999,30]
[422290207,1778794265000,-151.0,0.00040999,30]
[422290188,1778794265000,-151.0,0.00040999,30]
[422290189,1778794265000,-217.15233878,0.00040999,30]
[422290191,1778794265000,-260.4103811,0.00040999,30]
[422290190,1778794265000,-251.11897888,0.00040999,30]
[422290192,1778794265000,-225.18697532,0.00040999,30]
[422290197,1778794265000,-280.03725112,0.00040999,30]
[422290196,1778794265000,-151.0,0.00040999,30]
[422290204,1778794265000,-269.917619,0.00040999,30]
[422290202,1778794265000,-260.287,0.00040999,30]
[422290203,1778794265000,-151.0,0.00040999,30]
[422290198,1778794265000,-151.0,0.00040999,30]
[422290199,1778794265000,-290.39862941,0.00040999,30]
[422290201,1778794265000,-301.1433787,0.00040999,30]
[422290206,1778794265000,-279.9045709,0.00040999,30]
[422290205,1778794265000,-151.0,0.00040999,30]
[422290187,1778794265000,-293.80783185,0.00040999,30]
[422290200,1778794265000,-251.0,0.00040999,30]
[422290193,1778794265000,-151.0,0.00040999,30]
[422290170,1778794265000,-578.20924308,0.00040999,30]
[422290194,1778794265000,-200.77878754,0.00040999,30]
[422290173,1778794265000,-217.15233878,0.00040999,30]
[422290171,1778794265000,-1000.0,0.00040999,30]
[422290168,1778794265000,-209.40437684,0.00040999,30]
[422290172,1778794265000,-187.78006525,0.00040999,30]
[422290169,1778794265000,-377.08887068,0.00040999,30]
[422290208,1778794265000,-290.26104003,0.00040999,30]
[422290174,1778794265000,-599.60298507,0.00040999,30]
[422290178,1778794265000,-621.78829552,0.00040999,30]
[422290195,1778794265000,-270.0455652,0.00040999,30]
[422290182,1778794265000,-644.79446246,0.00040999,30]
[422290179,1778794265000,-1000.0,0.00040999,30]
[422290177,1778794265000,-225.18697532,0.00040999,30]
[422290183,1778794265000,-1000.0,0.00040999,30]
[422290176,1778794265000,-194.72792766,0.00040999,30]
[422290180,1778794265000,-201.93286099,0.00040999,30]
[422290181,1778794265000,-233.51889341,0.00040999,30]
[422290186,1778794265000,-612.92725252,0.00040999,30]
[422290184,1778794265000,-209.40437684,0.00040999,30]
[422290175,1778794265000,-1000.0,0.00040999,30]
[422290210,1778794265000,-301.00069851,0.00040999,30]
[422290213,1778794265000,-232.58182938,0.00040999,30]
[422290209,1778794265000,-151.0,0.00040999,30]
[422290232,1778794265000,-250.891123,0.00040999,30]
[422290237,1778794265000,-2827.732606,0.00040999,28]
[422290241,1778794265000,-543.52046,0.00040999,30]
[422290239,1778794265000,-543.52046,0.00040999,30]
[422290240,1778794265000,-543.52046,0.00040999,30]
[422290211,1778794265000,-151.0,0.00040999,30]
[422290238,1778794265000,-543.52046,0.00040999,30]
[422290236,1778794265000,-2827.732606,0.00040999,28]
[422290245,1778794265000,-1000000.0,0.00041,120]
[422290243,1778794265000,-5060.00347092,0.00041,120]
[422290244,1778794265000,-1000000.0,0.00041,120]
[422290251,1778794265000,-905000.0,0.00041,120]
[422290249,1778794265000,-1000000.61,0.00041,120]
[422290247,1778794265000,-1000000.0,0.00041,120]
[422290253,1778794265000,-836373.52570457,0.00041,120]
[422290248,1778794265000,-1000000.0,0.00041,120]
[422290252,1778794265000,-1000000.0,0.00041,120]
[422290246,1778794265000,-1000000.0,0.00041,120]
[422290250,1778794265000,-1000000.0,0.00041,120]
[422290242,1778794265000,-260.0,0.00040999,88]
[422290234,1778794265000,-2827.732606,0.00040999,28]
[422290235,1778794265000,-2827.732606,0.00040999,28]
[422290229,1778794265000,-342.82107872,0.00040999,30]
[422290212,1778794265000,-312.13772435,0.00040999,30]
[422290214,1778794265000,-323.68682015,0.00040999,30]
[422290233,1778794265000,-250.891123,0.00040999,30]
[422290215,1778794265000,-335.6632325,0.00040999,30]
[422290217,1778794265000,-348.0827721,0.00040999,30]
[422290216,1778794265000,-151.0,0.00040999,30]
[422290218,1778794265000,-156.587,0.00040999,30]
[422290220,1778794265000,-162.380719,0.00040999,30]
[422290221,1778794265000,-168.3888056,0.00040999,30]
[422290219,1778794265000,-285.57868602,0.00040999,30]
[422290231,1778794265000,-250.891123,0.00040999,30]
[422290222,1778794265000,-174.61919141,0.00040999,30]
[422290225,1778794265000,-194.72792766,0.00040999,30]
[422290227,1778794265000,-209.40437684,0.00040999,30]
[422290224,1778794265000,-187.78006525,0.00040999,30]
[422290230,1778794265000,-250.891123,0.00040999,30]
[422290223,1778794265000,-181.08010149,0.00040999,30]
[422290228,1778794265000,-217.15233878,0.00040999,30]
[422290226,1778794265000,-201.93286099,0.00040999,30]
[422290265,1778794266000,-1039.04238956,0.00035616,7]
[422290269,1778794266000,-1039.04238956,0.00035616,7]
[422290267,1778794266000,-1039.04238956,0.00035616,7]
[422290263,1778794266000,-1039.04238956,0.00035616,7]
[422290264,1778794266000,-1039.04238956,0.00035616,7]
[422290262,1778794266000,-1039.04238956,0.00035616,7]
[422290261,1778794266000,-1039.04238956,0.00035616,7]
[422290257,1778794266000,-500.0,0.0003306,30]
[422290259,1778794266000,-1039.04238956,0.00035616,7]
[422290256,1778794266000,-500.0,0.0003306,30]
[422290258,1778794266000,-1039.04238956,0.00035616,7]
[422290254,1778794266000,-3821.5,0.00027397,10]
[422290255,1778794266000,-500.0,0.0003306,30]
[422290268,1778794266000,-1039.04238956,0.00035616,7]
[422290260,1778794266000,-1039.04238956,0.00035616,7]
[422290271,1778794266000,-1039.04238956,0.00035616,7]
[422290283,1778794266000,-300.0,0.00037081,2]
[422290266,1778794266000,-1039.04238956,0.00035616,7]
[422290270,1778794266000,-1039.04238956,0.00035616,7]
[422290286,1778794266000,-220021.39166135,0.00041,120]
[422290285,1778794266000,-163626.47429543,0.00041,120]
[422290277,1778794266000,-1039.04238956,0.00035616,7]
[422290275,1778794266000,-1039.04238956,0.00035616,7]
[422290278,1778794266000,-1039.04238956,0.00035616,7]
[422290279,1778794266000,-1039.04238956,0.00035616,7]
[422290284,1778794266000,-264.983,0.00039356,120]
[422290280,1778794266000,-1039.04238956,0.00035616,7]
[422290272,1778794266000,-1039.04238956,0.00035616,7]
[422290274,1778794266000,-1039.04238956,0.00035616,7]
[422290281,1778794266000,-1039.04238956,0.00035616,7]
[422290282,1778794266000,-300.0,0.00037081,2]
[422290276,1778794266000,-1039.04238956,0.00035616,7]
[422290273,1778794266000,-1039.04238956,0.00035616,7]
[422290288,1778794267000,-568.0,0.00024397,2]
[422290287,1778794267000,-625.0,0.00018448,2]
[422290291,1778794267000,-300.0,0.00037081,2]
[422290289,1778794267000,-568.0,0.00024959,2]
[422290292,1778794267000,-4383.68059704,0.00041,120]
[422290293,1778794267000,-7873.30674746,0.00041,120]
[422290294,1778794267000,-304.0,0.00041,120]
[422290295,1778794267000,-200715.64198366,0.00041,120]
[422290290,1778794267000,-214.95940296,0.00034,30]
[422290298,1778794968000,181.19,7.799e-05,2]
[422290297,1778794968000,181.19,5.907e-05,2]
[422290306,1778795431000,-1200.0,8.492e-05,2]
[422290301,1778795431000,-732.2565111,8.346e-05,2]
[422290300,1778795431000,-1123.1044889,8.346e-05,2]
[422290302,1778795431000,-179.13317937,8.364e-05,2]
[422290304,1778795431000,-94.00065121,8.433e-05,2]
[422290303,1778795431000,-250.0,8.364e-05,2]
[422290305,1778795431000,-155.99934879,8.433e-05,2]
[422290308,1778795431000,-1000.0,8.514e-05,2]
[422290307,1778795431000,-151.0,8.513e-05,2]
[422290312,1778795431000,-2504.15309535,8.864e-05,2]
[422290310,1778795431000,-214.95940296,8.788e-05,2]
[422290315,1778795431000,-1557.27262659,8.864e-05,2]
[422290313,1778795431000,-1503.14592439,8.864e-05,2]
[422290318,1778795431000,-625.05307491,8.864e-05,2]
[422290316,1778795431000,-398.23314633,8.864e-05,2]
[422290314,1778795431000,-522.00245098,8.864e-05,2]
[422290311,1778795431000,-208.3309892,8.788e-05,2]
[422290317,1778795431000,-938.46279504,8.864e-05,2]
[422290309,1778795431000,-160.0,8.772e-05,2]
[422290320,1778795432000,-1580.42140316,8.864e-05,2]
[422290321,1778795432000,-150.99,8.864e-05,2]
[422290322,1778795432000,-2994.93866054,8.864e-05,2]
[422290319,1778795432000,-371.24548325,8.864e-05,2]
[422290328,1778795437000,-5139.92,0.00010624,2]
[422290325,1778795437000,-1205.55133946,8.864e-05,2]
[422290326,1778795437000,-250.0,9.181e-05,2]
[422290327,1778795437000,-181.19,9.691e-05,2]
[422290329,1778795437000,-13865.15454151,0.000109,2]
[422290333,1778795437000,-38327.70335694,0.00011099,2]
[422290336,1778795437000,-450.47351621,0.00011099,2]
[422290330,1778795437000,-547.95,0.00010989,2]
[422290332,1778795437000,-174.06,0.00010989,2]
[422290335,1778795437000,-667.96197469,0.00011099,2]
[422290331,1778795437000,-336.56,0.00010989,2]
[422290334,1778795437000,-2127.56901028,0.00011099,2]
[422290397,1778795438000,-500.0,0.00013698,2]
[422290384,1778795438000,-500.0,0.00013698,2]
[422290382,1778795438000,-500.0,0.00013698,2]
[422290380,1778795438000,-500.0,0.00013698,2]
[422290395,1778795438000,-500.0,0.00013698,2]
[422290374,1778795438000,-500.0,0.00013698,2]
[422290393,1778795438000,-492.17517372,0.00013698,2]
[422290399,1778795438000,-500.0,0.00013698,2]
[422290376,1778795438000,-500.0,0.00013698,2]
[422290391,1778795438000,-500.0,0.00013698,2]
[422290386,1778795438000,-500.0,0.00013698,2]
[422290388,1778795438000,-500.0,0.00013698,2]
[422290378,1778795438000,-500.0,0.00013698,2]
[422290401,1778795438000,-500.0,0.00013698,2]
[422290405,1778795438000,-331.68,0.00013698,2]
[422290408,1778795438000,-500.0,0.00013698,2]
[422290409,1778795438000,-500.0,0.00013698,2]
[422290407,1778795438000,-500.0,0.00013698,2]
[422290420,1778795438000,-500.0,0.00013698,2]
[422290422,1778795438000,-500.0,0.00013698,2]
[422290418,1778795438000,-500.0,0.00013698,2]
[422290416,1778795438000,-322.92,0.00013698,2]
[422290426,1778795438000,-500.0,0.00013698,2]
[422290410,1778795438000,-500.0,0.00013698,2]
[422290414,1778795438000,-500.0,0.00013698,2]
[422290412,1778795438000,-500.0,0.00013698,2]
[422290424,1778795438000,-500.0,0.00013698,2]
[422290372,1778795438000,-500.0,0.00013698,2]
[422290403,1778795438000,-500.0,0.00013698,2]
[422290368,1778795438000,-500.0,0.00013698,2]
[422290341,1778795438000,-150.0,0.00011735,2]
[422290370,1778795438000,-500.0,0.00013698,2]
[422290428,1778795438000,-500.0,0.00013698,2]
[422290337,1778795438000,-5775.87458761,0.00011099,2]
[422290339,1778795438000,-38705.12863682,0.00011437,2]
[422290340,1778795438000,-181.19,0.00011583,2]
[422290338,1778795438000,-8644.45380883,0.00011437,2]
[422290342,1778795438000,-13939.78,0.00011863,2]
[422290343,1778795438000,-503.37,0.00012506,2]
[422290345,1778795438000,-13865.15454149,0.00013153,2]
[422290344,1778795438000,-2000.0,0.00012705,2]
[422290347,1778795438000,-500.0,0.00013698,2]
[422290356,1778795438000,-500.0,0.00013698,2]
[422290355,1778795438000,-500.0,0.00013698,2]
[422290346,1778795438000,-500.0,0.00013698,2]
[422290371,1778795438000,-500.0,0.00013698,2]
[422290349,1778795438000,-500.0,0.00013698,2]
[422290350,1778795438000,-500.0,0.00013698,2]
[422290352,1778795438000,-500.0,0.00013698,2]
[422290351,1778795438000,-500.0,0.00013698,2]
[422290354,1778795438000,-500.0,0.00013698,2]
[422290353,1778795438000,-500.0,0.00013698,2]
[422290357,1778795438000,-500.0,0.00013698,2]
[422290359,1778795438000,-500.0,0.00013698,2]
[422290360,1778795438000,-500.0,0.00013698,2]
[422290361,1778795438000,-500.0,0.00013698,2]
[422290362,1778795438000,-500.0,0.00013698,2]
[422290358,1778795438000,-253.20862258,0.00013698,2]
[422290364,1778795438000,-500.0,0.00013698,2]
[422290366,1778795438000,-500.0,0.00013698,2]
[422290348,1778795438000,-500.0,0.00013698,2]
[422290430,1778795438000,-500.0,0.00013698,2]
[422290442,1778795438000,-500.0,0.00013698,2]
[422290434,1778795438000,-500.0,0.00013698,2]
[422290466,1778795438000,-520.0293993,0.00013698,2]
[422290462,1778795438000,-500.0,0.00013698,2]
[422290469,1778795438000,-500.0,0.00013698,2]
[422290467,1778795438000,-457.86163364,0.00013698,2]
[422290473,1778795438000,-166.66,0.00013973,2]
[422290475,1778795438000,-250.0,0.00014,2]
[422290477,1778795438000,-166.66,0.00014247,2]
[422290479,1778795438000,-347.46,0.000143,2]
[422290481,1778795438000,-166.66,0.00014384,2]
[422290482,1778795438000,-151.0,0.00014673,2]
[422290474,1778795438000,-29884.6,0.00014,2]
[422290486,1778795438000,-151.0,0.00014673,2]
[422290476,1778795438000,-166.66,0.0001411,2]
[422290464,1778795438000,-500.0,0.00013698,2]
[422290485,1778795438000,-151.0,0.00014673,2]
[422290484,1778795438000,-151.0,0.00014673,2]
[422290483,1778795438000,-151.0,0.00014673,2]
[422290488,1778795438000,-151.0,0.00014673,2]
[422290489,1778795438000,-151.0,0.00014673,2]
[422290487,1778795438000,-151.0,0.00014673,2]
[422290493,1778795438000,-151.0,0.00014673,2]
[422290491,1778795438000,-151.0,0.00014673,2]
[422290490,1778795438000,-151.0,0.00014673,2]
[422290495,1778795438000,-151.0,0.00014673,2]
[422290492,1778795438000,-151.0,0.00014673,2]
[422290494,1778795438000,-151.0,0.00014673,2]
[422290497,1778795438000,-151.0,0.00014673,2]
[422290432,1778795438000,-500.0,0.00013698,2]
[422290480,1778795438000,-47349.58244565,0.00014346,2]
[422290461,1778795438000,-500.0,0.00013698,2]
[422290478,1778795438000,-2000.0,0.00014293,2]
[422290465,1778795438000,-500.0,0.00013698,2]
[422290436,1778795438000,-316.56,0.00013698,2]
[422290463,1778795438000,-500.0,0.00013698,2]
[422290441,1778795438000,-412.34123343,0.00013698,2]
[422290439,1778795438000,-500.0,0.00013698,2]
[422290443,1778795438000,-500.0,0.00013698,2]
[422290496,1778795438000,-151.0,0.00014673,2]
[422290440,1778795438000,-500.0,0.00013698,2]
[422290438,1778795438000,-500.0,0.00013698,2]
[422290444,1778795438000,-500.0,0.00013698,2]
[422290457,1778795438000,-667.16,0.00013698,2]
[422290456,1778795438000,-667.16,0.00013698,2]
[422290448,1778795438000,-551.36232681,0.00013698,2]
[422290458,1778795438000,-667.16,0.00013698,2]
[422290450,1778795438000,-667.16,0.00013698,2]
[422290446,1778795438000,-500.0,0.00013698,2]
[422290460,1778795438000,-500.0,0.00013698,2]
[422290453,1778795438000,-667.16,0.00013698,2]
[422290452,1778795438000,-667.16,0.00013698,2]
[422290447,1778795438000,-500.0,0.00013698,2]
[422290451,1778795438000,-667.16,0.00013698,2]
[422290445,1778795438000,-500.0,0.00013698,2]
[422290449,1778795438000,-667.16,0.00013698,2]
[422290455,1778795438000,-667.16,0.00013698,2]
[422290468,1778795438000,-500.0,0.00013698,2]
[422290470,1778795438000,-458.73806424,0.00013698,2]
[422290459,1778795438000,-667.16,0.00013698,2]
[422290472,1778795438000,-166.66,0.00013836,2]
[422290454,1778795438000,-667.16,0.00013698,2]
[422290471,1778795438000,-166.66,0.00013699,2]
[422290541,1778795439000,-150.0,0.00018518,2]
[422290528,1778795439000,-233.6,0.0001805,2]
[422290538,1778795439000,-926.0,0.00018518,2]
[422290542,1778795439000,-275.0,0.00018518,2]
[422290543,1778795439000,-219.0,0.00018518,2]
[422290534,1778795439000,-2420.7,0.0001841,2]
[422290527,1778795439000,-233.6,0.0001805,2]
[422290539,1778795439000,-625.0,0.00018518,2]
[422290536,1778795439000,-667.16,0.00018517,2]
[422290537,1778795439000,-3542.0,0.00018518,2]
[422290535,1778795439000,-1066.39130912,0.000185,2]
[422290553,1778795439000,-2000.0,0.00019058,2]
[422290540,1778795439000,-1270.0,0.00018518,2]
[422290550,1778795439000,-1066.39130912,0.000187,2]
[422290560,1778795439000,-151.16892255,0.000192,2]
[422290544,1778795439000,-200.0,0.00018518,2]
[422290546,1778795439000,-174.0,0.00018518,2]
[422290549,1778795439000,-6052.0,0.00018518,2]
[422290547,1778795439000,-150.0,0.00018518,2]
[422290552,1778795439000,-163.89776066,0.00019037,2]
[422290548,1778795439000,-150.0,0.00018518,2]
[422290551,1778795439000,-155.73,0.00019,2]
[422290554,1778795439000,-15000.0,0.00019101,4]
[422290557,1778795439000,-10345.30111727,0.00019101,4]
[422290559,1778795439000,-150.0,0.00019178,5]
[422290556,1778795439000,-15000.0,0.00019101,4]
[422290558,1778795439000,-244.60120759,0.00019178,2]
[422290565,1778795439000,-5955.0,0.0002,2]
[422290530,1778795439000,-1066.39130912,0.000182,2]
[422290545,1778795439000,-938.913,0.00018518,2]
[422290533,1778795439000,-1066.39130912,0.000184,2]
[422290498,1778795439000,-151.0,0.00014673,2]
[422290531,1778795439000,-1185.02684628,0.00018265,2]
[422290500,1778795439000,-151.0,0.00014673,2]
[422290499,1778795439000,-151.0,0.00014673,2]
[422290555,1778795439000,-15000.0,0.00019101,4]
[422290501,1778795439000,-151.0,0.00014673,2]
[422290505,1778795439000,-1996.8,0.00016357,2]
[422290504,1778795439000,-8183.64,0.00016116,2]
[422290503,1778795439000,-300.0,0.00016,2]
[422290502,1778795439000,-2000.0,0.00015881,2]
[422290510,1778795439000,-163.0618081,0.00016438,30]
[422290511,1778795439000,-163.0618081,0.00016438,2]
[422290506,1778795439000,-2420.7,0.00016438,2]
[422290513,1778795439000,-163.06180811,0.00016438,2]
[422290507,1778795439000,-277.10333256,0.00016438,2]
[422290512,1778795439000,-163.06180811,0.00016438,30]
[422290529,1778795439000,-1584.0,0.000181,2]
[422290508,1778795439000,-175.3038,0.00016438,30]
[422290515,1778795439000,-156.58,0.00016712,2]
[422290514,1778795439000,-163.06180811,0.00016438,30]
[422290525,1778795439000,-350.0,0.00018,2]
[422290517,1778795439000,-503.37,0.00016945,2]
[422290520,1778795439000,-2000.0,0.0001747,2]
[422290524,1778795439000,-1066.39130912,0.00018,2]
[422290516,1778795439000,-240.22,0.00016906,2]
[422290519,1778795439000,-47349.58244565,0.00017254,2]
[422290522,1778795439000,-13865.15454149,0.00017777,2]
[422290518,1778795439000,-29884.6,0.00017,2]
[422290526,1778795439000,-318.55,0.00018001,2]
[422290521,1778795439000,-163.89776066,0.00017607,2]
[422290523,1778795439000,-500.0,0.00017846,2]
[422290532,1778795439000,-240.22,0.00018275,2]
[422290509,1778795439000,-175.3038,0.00016438,2]
[422290564,1778795439000,-345.0,0.0002,2]
[422290569,1778795439000,-2932.0,0.0002,2]
[422290561,1778795439000,-500.0,0.00019999,2]
[422290607,1778795439000,-257.0,0.00021,2]
[422290596,1778795439000,-162.0,0.00021,2]
[422290600,1778795439000,-15000.0,0.00021,2]
[422290599,1778795439000,-4071.0,0.00021,2]
[422290601,1778795439000,-6111.0,0.00021,2]
[422290598,1778795439000,-2932.0,0.00021,2]